[Event "*** Titled Tuesday Blitz"]
[Site "Chess.com"]
[Date "2020.10.20"]
[Round "7"]
[White "davidkalashian"]
[Black "GMKrikor"]
[Result "0-1"]
[WhiteElo "2606"]
[BlackElo "2796"]
[TimeControl "180+1"]
[EndTime "11:18:39 PDT"]
[Termination "GMKrikor won on time"]

1. d4 {[%clk 0:03:00.9]} 1... Nf6 {[%clk 0:02:58.5]} 2. c4 {[%clk 0:03:00.6]}
2... g6 {[%clk 0:02:58.7]} 3. Nc3 {[%clk 0:02:59.9]} 3... d5 {[%clk 0:02:59.3]}
4. Bf4 {[%clk 0:02:59.3]} 4... Bg7 {[%clk 0:02:58.8]} 5. e3 {[%clk 0:02:59.8]}
5... O-O {[%clk 0:02:58.3]} 6. Rc1 {[%clk 0:03:00.4]} 6... Be6 {[%clk
0:02:55.1]} 7. c5 {[%clk 0:02:54.3]} 7... c6 {[%clk 0:02:55]} 8. Nf3 {[%clk
0:02:52.7]} 8... Bg4 {[%clk 0:02:54.7]} 9. Be2 {[%clk 0:02:49.9]} 9... Nfd7
{[%clk 0:02:54.4]} 10. O-O {[%clk 0:02:28.4]} 10... Bxf3 {[%clk 0:02:54.1]} 11.
Bxf3 {[%clk 0:02:27.9]} 11... e5 {[%clk 0:02:55]} 12. Bg3 {[%clk 0:02:26.7]}
12... Re8 {[%clk 0:02:52.1]} 13. b4 {[%clk 0:02:23.6]} 13... exd4 {[%clk
0:02:42.5]} 14. exd4 {[%clk 0:02:22.3]} 14... Nf8 {[%clk 0:02:43.2]} 15. Ne2
{[%clk 0:01:25.8]} 15... Ne6 {[%clk 0:02:39.5]} 16. h4 {[%clk 0:01:18]} 16...
Nd7 {[%clk 0:02:37.1]} 17. a4 {[%clk 0:01:13.2]} 17... h5 {[%clk 0:02:23.6]} 18.
b5 {[%clk 0:01:10.9]} 18... Bf6 {[%clk 0:02:22.1]} 19. Rb1 {[%clk 0:00:26.9]}
19... Bxh4 {[%clk 0:02:14.6]} 20. Bd6 {[%clk 0:00:25.8]} 20... Be7 {[%clk
0:02:11]} 21. Bh2 {[%clk 0:00:24.2]} 21... Bf6 {[%clk 0:02:02.3]} 22. Qd2 {[%clk
0:00:21.5]} 22... Ng5 {[%clk 0:02:01.7]} 23. Qf4 {[%clk 0:00:16.6]} 23... Nf8
{[%clk 0:02:02]} 24. bxc6 {[%clk 0:00:10.8]} 24... bxc6 {[%clk 0:02:02.9]} 25.
Rb7 {[%clk 0:00:06.2]} 25... Nfe6 {[%clk 0:01:58.1]} 26. Qg3 {[%clk 0:00:05]}
26... Nxd4 {[%clk 0:01:27.1]} 27. Nxd4 {[%clk 0:00:04.1]} 27... Bxd4 {[%clk
0:01:28]} 28. Qf4 {[%clk 0:00:03.6]} 28... Qf6 {[%clk 0:01:16.8]} 29. Qxf6
{[%clk 0:00:01.3]} 29... Bxf6 {[%clk 0:01:17.7]} 0-1

[Event "*** Titled Tuesday Blitz"]
[Site "Chess.com"]
[Date "2020.10.20"]
[Round "7"]
[White "Rud_Makarian"]
[Black "11kevin"]
[Result "1-0"]
[WhiteElo "2755"]
[BlackElo "2580"]
[TimeControl "180+1"]
[EndTime "11:18:40 PDT"]
[Termination "Rud_Makarian won by checkmate"]

1. d4 {[%clk 0:02:59.1]} 1... Nf6 {[%clk 0:02:58.3]} 2. c4 {[%clk 0:02:59.7]}
2... e6 {[%clk 0:02:58.5]} 3. Nf3 {[%clk 0:02:59]} 3... b6 {[%clk 0:02:55.8]} 4.
g3 {[%clk 0:02:58.8]} 4... Bb7 {[%clk 0:02:55.7]} 5. Bg2 {[%clk 0:02:59.4]} 5...
Be7 {[%clk 0:02:54.9]} 6. O-O {[%clk 0:03:00]} 6... O-O {[%clk 0:02:55]} 7. Re1
{[%clk 0:02:59.4]} 7... Ne4 {[%clk 0:02:41.4]} 8. Nfd2 {[%clk 0:02:55.5]} 8...
f5 {[%clk 0:02:40.8]} 9. Qc2 {[%clk 0:02:52.8]} 9... d5 {[%clk 0:02:36.6]} 10.
Nc3 {[%clk 0:02:52.9]} 10... Bf6 {[%clk 0:02:34]} 11. cxd5 {[%clk 0:02:50]}
11... exd5 {[%clk 0:02:30.3]} 12. Nf3 {[%clk 0:02:50.5]} 12... c5 {[%clk
0:02:23.3]} 13. dxc5 {[%clk 0:02:50.5]} 13... bxc5 {[%clk 0:02:20.8]} 14. Bf4
{[%clk 0:02:46.1]} 14... d4 {[%clk 0:02:11.8]} 15. Qb3+ {[%clk 0:02:44.8]} 15...
Rf7 {[%clk 0:02:11.7]} 16. Nxe4 {[%clk 0:02:38.9]} 16... fxe4 {[%clk 0:02:07.1]}
17. Ne5 {[%clk 0:02:39]} 17... Bxe5 {[%clk 0:01:59.9]} 18. Bxe5 {[%clk
0:02:39.9]} 18... Bd5 {[%clk 0:01:58]} 19. Qb5 {[%clk 0:02:39.7]} 19... Nd7
{[%clk 0:01:24.8]} 20. Bf4 {[%clk 0:02:34.2]} 20... Qb6 {[%clk 0:01:12.2]} 21.
Qa4 {[%clk 0:02:28.6]} 21... c4 {[%clk 0:01:06.6]} 22. Rad1 {[%clk 0:02:25.6]}
22... Raf8 {[%clk 0:00:56]} 23. Qa3 {[%clk 0:02:15.9]} 23... Rxf4 {[%clk
0:00:43.6]} 24. gxf4 {[%clk 0:02:15.8]} 24... Rxf4 {[%clk 0:00:44.5]} 25. e3
{[%clk 0:02:11.4]} 25... Rg4 {[%clk 0:00:43.8]} 26. Qe7 {[%clk 0:01:59.7]} 26...
Nf6 {[%clk 0:00:33.6]} 27. Rxd4 {[%clk 0:01:58.3]} 27... h6 {[%clk 0:00:28.5]}
28. Red1 {[%clk 0:01:53.4]} 28... Rg5 {[%clk 0:00:20.5]} 29. h4 {[%clk
0:01:52.8]} 29... Rh5 {[%clk 0:00:15.5]} 30. Bh3 {[%clk 0:01:44.5]} 30... Bf7
{[%clk 0:00:12.6]} 31. Rd8+ {[%clk 0:01:43.5]} 31... Kh7 {[%clk 0:00:10.1]} 32.
Qxf7 {[%clk 0:01:44.2]} 32... Qc5 {[%clk 0:00:08.1]} 33. Qxf6 {[%clk 0:01:33.2]}
33... gxf6 {[%clk 0:00:07.3]} 34. R1d7+ {[%clk 0:01:33.1]} 34... Kg6 {[%clk
0:00:06.9]} 35. Rg8# {[%clk 0:01:33.6]} 1-0

[Event "*** Titled Tuesday Blitz"]
[Site "Chess.com"]
[Date "2020.10.20"]
[Round "7"]
[White "glebus008"]
[Black "Sokoloco"]
[Result "0-1"]
[WhiteElo "2336"]
[BlackElo "2481"]
[TimeControl "180+1"]
[EndTime "11:18:43 PDT"]
[Termination "Sokoloco won by resignation"]

1. e4 {[%clk 0:02:59.6]} 1... g6 {[%clk 0:02:59]} 2. d4 {[%clk 0:02:58.2]} 2...
Bg7 {[%clk 0:02:59.2]} 3. Nc3 {[%clk 0:02:56.6]} 3... d6 {[%clk 0:02:57.5]} 4.
h3 {[%clk 0:02:53.5]} 4... a6 {[%clk 0:02:56.6]} 5. Nf3 {[%clk 0:02:50.1]} 5...
b5 {[%clk 0:02:55.5]} 6. Be3 {[%clk 0:02:42.1]} 6... Bb7 {[%clk 0:02:54.9]} 7.
Bd3 {[%clk 0:02:40]} 7... Nd7 {[%clk 0:02:50.4]} 8. Qd2 {[%clk 0:02:38.3]} 8...
c5 {[%clk 0:02:45]} 9. d5 {[%clk 0:02:34.1]} 9... c4 {[%clk 0:02:17.5]} 10. Be2
{[%clk 0:02:33]} 10... b4 {[%clk 0:02:10.5]} 11. Na4 {[%clk 0:02:25.8]} 11...
Qa5 {[%clk 0:01:56.1]} 12. Bxc4 {[%clk 0:01:44.3]} 12... Qxa4 {[%clk 0:01:48.3]}
13. Bb3 {[%clk 0:01:43.1]} 13... Qa5 {[%clk 0:01:40.9]} 14. O-O-O {[%clk
0:01:44]} 14... Ngf6 {[%clk 0:01:37.7]} 15. e5 {[%clk 0:01:32.8]} 15... dxe5
{[%clk 0:01:26.9]} 16. d6 {[%clk 0:01:31.5]} 16... Ne4 {[%clk 0:01:25.3]} 17.
Qd3 {[%clk 0:01:26.9]} 17... Nxd6 {[%clk 0:01:25.5]} 18. Ng5 {[%clk 0:01:17.1]}
18... Rd8 {[%clk 0:00:38.7]} 19. Nxf7 {[%clk 0:00:51.3]} 19... Nxf7 {[%clk
0:00:37.1]} 20. Bxf7+ {[%clk 0:00:52.2]} 20... Kxf7 {[%clk 0:00:38]} 21. Qb3+
{[%clk 0:00:51.8]} 21... e6 {[%clk 0:00:36.5]} 22. Rd6 {[%clk 0:00:49.2]} 22...
Bd5 {[%clk 0:00:33.5]} 23. Rxd5 {[%clk 0:00:47]} 23... exd5 {[%clk 0:00:31.2]}
24. Rd1 {[%clk 0:00:46]} 24... Nf6 {[%clk 0:00:31.7]} 25. Bg5 {[%clk 0:00:45.1]}
25... Rd7 {[%clk 0:00:30.7]} 26. Bxf6 {[%clk 0:00:44.5]} 26... Bxf6 {[%clk
0:00:30.6]} 27. Qf3 {[%clk 0:00:42.9]} 0-1

[Event "*** Titled Tuesday Blitz"]
[Site "Chess.com"]
[Date "2020.10.20"]
[Round "7"]
[White "Oglob71"]
[Black "coco_crc"]
[Result "1-0"]
[WhiteElo "2445"]
[BlackElo "2199"]
[TimeControl "180+1"]
[EndTime "11:18:44 PDT"]
[Termination "Oglob71 won by resignation"]

1. d4 {[%clk 0:03:00.9]} 1... d5 {[%clk 0:02:59.3]} 2. Nf3 {[%clk 0:03:00.4]}
2... Nf6 {[%clk 0:02:58.2]} 3. c4 {[%clk 0:03:00.9]} 3... e6 {[%clk 0:02:58]} 4.
Qc2 {[%clk 0:03:00.4]} 4... Be7 {[%clk 0:02:53.7]} 5. Bg5 {[%clk 0:02:58.2]}
5... h6 {[%clk 0:02:53.2]} 6. Bh4 {[%clk 0:02:57.8]} 6... Nbd7 {[%clk
0:02:51.4]} 7. e3 {[%clk 0:02:58]} 7... c5 {[%clk 0:02:46.1]} 8. cxd5 {[%clk
0:02:57.8]} 8... Nxd5 {[%clk 0:02:44.4]} 9. Bxe7 {[%clk 0:02:54.9]} 9... Qxe7
{[%clk 0:02:45.3]} 10. Bc4 {[%clk 0:02:44.7]} 10... O-O {[%clk 0:02:35.8]} 11.
O-O {[%clk 0:02:41.5]} 11... cxd4 {[%clk 0:02:33.4]} 12. Bxd5 {[%clk 0:02:40.9]}
12... exd5 {[%clk 0:02:32.3]} 13. Nxd4 {[%clk 0:02:41.5]} 13... Nf6 {[%clk
0:02:27.6]} 14. Nc3 {[%clk 0:02:42]} 14... Be6 {[%clk 0:02:27.6]} 15. Rad1
{[%clk 0:02:42.2]} 15... Rac8 {[%clk 0:02:27.3]} 16. Qa4 {[%clk 0:02:42.5]}
16... a6 {[%clk 0:02:24.7]} 17. h3 {[%clk 0:02:42.6]} 17... Rfd8 {[%clk
0:02:20.8]} 18. Rc1 {[%clk 0:02:41.7]} 18... Rc4 {[%clk 0:02:19.6]} 19. Qb3
{[%clk 0:02:39.3]} 19... Rdc8 {[%clk 0:02:18.6]} 20. Nce2 {[%clk 0:02:39.4]}
20... Qc5 {[%clk 0:02:11.2]} 21. Rxc4 {[%clk 0:02:34.6]} 21... Qxc4 {[%clk
0:02:09.8]} 22. Qxc4 {[%clk 0:02:31.4]} 22... Rxc4 {[%clk 0:02:06.2]} 23. Rc1
{[%clk 0:02:29.2]} 23... Kf8 {[%clk 0:02:00.3]} 24. b3 {[%clk 0:02:29.4]} 24...
Rxc1+ {[%clk 0:01:58.6]} 25. Nxc1 {[%clk 0:02:29.9]} 25... Ke7 {[%clk 0:01:59]}
26. f3 {[%clk 0:02:28.7]} 26... Kd6 {[%clk 0:01:54.1]} 27. Kf2 {[%clk
0:02:29.1]} 27... Nd7 {[%clk 0:01:52.4]} 28. Nd3 {[%clk 0:02:28.5]} 28... Ne5
{[%clk 0:01:46.7]} 29. Ke2 {[%clk 0:02:26.5]} 29... Nxd3 {[%clk 0:01:43.9]} 30.
Kxd3 {[%clk 0:02:26.6]} 30... Bd7 {[%clk 0:01:44.2]} 31. b4 {[%clk 0:02:26.5]}
31... g5 {[%clk 0:01:32.4]} 32. a3 {[%clk 0:02:24]} 32... Ke5 {[%clk 0:01:28.6]}
33. g4 {[%clk 0:02:17.7]} 33... Kd6 {[%clk 0:01:08.3]} 34. Ke2 {[%clk 0:02:17]}
34... Ke5 {[%clk 0:01:03.9]} 35. Kf2 {[%clk 0:02:16.8]} 35... f6 {[%clk
0:00:32.4]} 36. Kg3 {[%clk 0:02:15]} 36... f5 {[%clk 0:00:24.1]} 37. gxf5 {[%clk
0:02:10.3]} 37... Bxf5 {[%clk 0:00:25]} 38. h4 {[%clk 0:02:10.8]} 38... Bd7
{[%clk 0:00:17.7]} 39. hxg5 {[%clk 0:02:11]} 39... hxg5 {[%clk 0:00:18.6]} 40.
Nb3 {[%clk 0:02:11.2]} 40... Bc6 {[%clk 0:00:12.4]} 41. Kf2 {[%clk 0:02:10.1]}
41... Ba4 {[%clk 0:00:07.6]} 42. Nc5 {[%clk 0:02:09.8]} 42... Bc6 {[%clk
0:00:07.5]} 43. Ke2 {[%clk 0:02:10.1]} 43... d4 {[%clk 0:00:07.9]} 44. e4 {[%clk
0:02:09.8]} 44... Kf4 {[%clk 0:00:04.6]} 45. Nd3+ {[%clk 0:02:08.6]} 45... Kg3
{[%clk 0:00:03.4]} 46. Ne5 {[%clk 0:02:09.1]} 46... Be8 {[%clk 0:00:02.3]} 47.
Kd3 {[%clk 0:02:08.1]} 47... Kf4 {[%clk 0:00:02.7]} 48. Kxd4 {[%clk 0:02:08.1]}
48... g4 {[%clk 0:00:02.6]} 49. fxg4 {[%clk 0:02:07.6]} 49... Bd7 {[%clk
0:00:02.5]} 1-0

[Event "*** Titled Tuesday Blitz"]
[Site "Chess.com"]
[Date "2020.10.20"]
[Round "7"]
[White "kinga2008"]
[Black "zurzan"]
[Result "0-1"]
[WhiteElo "2158"]
[BlackElo "2017"]
[TimeControl "180+1"]
[EndTime "11:18:46 PDT"]
[Termination "zurzan won by resignation"]

1. e4 {[%clk 0:03:00.9]} 1... Nf6 {[%clk 0:02:59.2]} 2. e5 {[%clk 0:02:51.3]}
2... Nd5 {[%clk 0:02:59.2]} 3. c4 {[%clk 0:02:49.6]} 3... Nb6 {[%clk 0:02:59.3]}
4. d4 {[%clk 0:02:42.1]} 4... d6 {[%clk 0:02:59.4]} 5. exd6 {[%clk 0:02:32.5]}
5... cxd6 {[%clk 0:02:59.5]} 6. Nf3 {[%clk 0:02:31.4]} 6... g6 {[%clk
0:02:59.9]} 7. Nc3 {[%clk 0:02:23.2]} 7... Bg7 {[%clk 0:02:59.8]} 8. Be3 {[%clk
0:02:16.6]} 8... O-O {[%clk 0:02:59.5]} 9. Qd2 {[%clk 0:02:06.5]} 9... Bg4
{[%clk 0:02:54.5]} 10. b3 {[%clk 0:01:52.1]} 10... Bxf3 {[%clk 0:02:52.5]} 11.
gxf3 {[%clk 0:01:49.8]} 11... e5 {[%clk 0:02:52]} 12. d5 {[%clk 0:01:46.2]}
12... f5 {[%clk 0:02:47.1]} 13. Be2 {[%clk 0:01:32.1]} 13... N8d7 {[%clk
0:02:46.4]} 14. O-O-O {[%clk 0:01:16.6]} 14... a5 {[%clk 0:02:43.1]} 15. f4
{[%clk 0:01:13.2]} 15... a4 {[%clk 0:02:41.7]} 16. b4 {[%clk 0:01:07.2]} 16...
exf4 {[%clk 0:02:23.8]} 17. Bxf4 {[%clk 0:01:01.2]} 17... Ne5 {[%clk 0:02:23.6]}
18. Bxe5 {[%clk 0:00:56.5]} 18... Bxe5 {[%clk 0:02:22.5]} 19. f4 {[%clk
0:00:47.2]} 19... Bg7 {[%clk 0:02:16.4]} 20. Rhe1 {[%clk 0:00:44.7]} 20... Rc8
{[%clk 0:02:13]} 21. c5 {[%clk 0:00:30.7]} 21... dxc5 {[%clk 0:02:12.5]} 22. Nb5
{[%clk 0:00:22.2]} 22... cxb4+ {[%clk 0:02:09.1]} 23. Kb1 {[%clk 0:00:16.8]}
23... Bc3 {[%clk 0:02:00.1]} 24. Nxc3 {[%clk 0:00:01.8]} 24... bxc3 {[%clk
0:02:01]} 25. Qc2 {[%clk 0:00:01.9]} 25... Rc5 {[%clk 0:01:37.8]} 26. d6 {[%clk
0:00:01.3]} 26... Nd5 {[%clk 0:01:20.2]} 27. Ka1 {[%clk 0:00:01.9]} 27... Ne3
{[%clk 0:01:16.7]} 28. Qd3 {[%clk 0:00:02.2]} 28... Nxd1 {[%clk 0:01:14.2]} 29.
Rxd1 {[%clk 0:00:03.1]} 29... c2 {[%clk 0:01:13.4]} 30. Rc1 {[%clk 0:00:03.3]}
30... Qf6+ {[%clk 0:01:13.4]} 0-1

[Event "*** Titled Tuesday Blitz"]
[Site "Chess.com"]
[Date "2020.10.20"]
[Round "7"]
[White "DenisQ"]
[Black "SARGISMV"]
[Result "1-0"]
[WhiteElo "2672"]
[BlackElo "2504"]
[TimeControl "180+1"]
[EndTime "11:18:49 PDT"]
[Termination "DenisQ won by resignation"]

1. Nf3 {[%clk 0:03:00.9]} 1... Nf6 {[%clk 0:02:56.5]} 2. g3 {[%clk 0:03:00.4]}
2... g6 {[%clk 0:02:54.9]} 3. Bg2 {[%clk 0:03:00.2]} 3... Bg7 {[%clk 0:02:54.8]}
4. O-O {[%clk 0:03:00.8]} 4... O-O {[%clk 0:02:54.9]} 5. c4 {[%clk 0:03:01]}
5... c5 {[%clk 0:02:55.3]} 6. Nc3 {[%clk 0:03:00.6]} 6... Nc6 {[%clk 0:02:53.4]}
7. d4 {[%clk 0:03:00.4]} 7... cxd4 {[%clk 0:02:52.1]} 8. Nxd4 {[%clk 0:03:01.3]}
8... Ng4 {[%clk 0:02:52.4]} 9. e3 {[%clk 0:02:58.4]} 9... d6 {[%clk 0:02:51.4]}
10. b3 {[%clk 0:02:58]} 10... Nge5 {[%clk 0:02:48.2]} 11. h3 {[%clk 0:02:55.1]}
11... a6 {[%clk 0:02:39.5]} 12. Bb2 {[%clk 0:02:54]} 12... Nxd4 {[%clk
0:02:38.2]} 13. exd4 {[%clk 0:02:52.8]} 13... Nc6 {[%clk 0:02:38.9]} 14. d5
{[%clk 0:02:49.2]} 14... Ne5 {[%clk 0:02:34.5]} 15. Re1 {[%clk 0:02:37.7]} 15...
Bf5 {[%clk 0:02:32.6]} 16. g4 {[%clk 0:02:30.6]} 16... Bc8 {[%clk 0:02:20.3]}
17. Qe2 {[%clk 0:02:26.3]} 17... Re8 {[%clk 0:02:19.3]} 18. Rad1 {[%clk
0:02:15]} 18... b5 {[%clk 0:02:17.6]} 19. c5 {[%clk 0:01:55.1]} 19... dxc5
{[%clk 0:02:11.6]} 20. d6 {[%clk 0:01:46.5]} 20... Ra7 {[%clk 0:02:04.5]} 21.
dxe7 {[%clk 0:01:32.3]} 21... Qxe7 {[%clk 0:02:03.3]} 22. Nd5 {[%clk 0:01:31.8]}
22... Qe6 {[%clk 0:01:56.9]} 23. Qc2 {[%clk 0:01:13.6]} 23... g5 {[%clk
0:01:28.4]} 24. Qxc5 {[%clk 0:01:04.2]} 24... Rd7 {[%clk 0:01:25.3]} 25. Nc7
{[%clk 0:01:03]} 25... Nf3+ {[%clk 0:01:11.9]} 26. Bxf3 {[%clk 0:01:00.7]} 26...
Qxe1+ {[%clk 0:01:12.8]} 27. Rxe1 {[%clk 0:01:00.1]} 27... Rxe1+ {[%clk
0:01:13.7]} 28. Kg2 {[%clk 0:00:57.5]} 28... Bxb2 {[%clk 0:01:14.6]} 29. Nd5
{[%clk 0:00:41.7]} 29... Bb7 {[%clk 0:01:10.8]} 30. Ne3 {[%clk 0:00:31.5]} 30...
Bxf3+ {[%clk 0:00:53.1]} 31. Kxf3 {[%clk 0:00:32.4]} 31... Rd8 {[%clk
0:00:44.4]} 32. Qxg5+ {[%clk 0:00:31.6]} 32... Kf8 {[%clk 0:00:43.7]} 33. Qxd8+
{[%clk 0:00:31.5]} 1-0

[Event "*** Titled Tuesday Blitz"]
[Site "Chess.com"]
[Date "2020.10.20"]
[Round "7"]
[White "doons21"]
[Black "UmarovSabir"]
[Result "1-0"]
[WhiteElo "2550"]
[BlackElo "2351"]
[TimeControl "180+1"]
[EndTime "11:18:51 PDT"]
[Termination "doons21 won on time"]

1. e4 {[%clk 0:03:00.9]} 1... g6 {[%clk 0:02:55.5]} 2. d4 {[%clk 0:03:00.4]}
2... Bg7 {[%clk 0:02:55.9]} 3. c3 {[%clk 0:03:00.8]} 3... d5 {[%clk 0:02:55.1]}
4. exd5 {[%clk 0:02:59.4]} 4... Qxd5 {[%clk 0:02:51.8]} 5. Nf3 {[%clk
0:02:59.7]} 5... c5 {[%clk 0:02:35.1]} 6. Be2 {[%clk 0:02:59.5]} 6... cxd4
{[%clk 0:02:23.5]} 7. cxd4 {[%clk 0:03:00.4]} 7... Nf6 {[%clk 0:02:22]} 8. Nc3
{[%clk 0:02:58.9]} 8... Qa5 {[%clk 0:02:20.1]} 9. O-O {[%clk 0:02:51.6]} 9...
O-O {[%clk 0:02:18.6]} 10. Qb3 {[%clk 0:02:46.8]} 10... Nbd7 {[%clk 0:01:43.1]}
11. Bd2 {[%clk 0:02:30.3]} 11... Qb6 {[%clk 0:01:42]} 12. Qa3 {[%clk 0:02:27.3]}
12... Re8 {[%clk 0:01:36.2]} 13. Bc4 {[%clk 0:02:23]} 13... Nf8 {[%clk
0:01:27.5]} 14. Rfe1 {[%clk 0:01:57.7]} 14... e6 {[%clk 0:01:17.4]} 15. d5
{[%clk 0:01:40.5]} 15... Ng4 {[%clk 0:00:30.9]} 16. Re2 {[%clk 0:01:28]} 16...
Qc7 {[%clk 0:00:12.2]} 17. Qb3 {[%clk 0:01:11.6]} 17... e5 {[%clk 0:00:07.2]}
18. d6 {[%clk 0:01:07.4]} 18... Qd7 {[%clk 0:00:07.2]} 19. Bb5 {[%clk
0:01:06.9]} 19... Qe6 {[%clk 0:00:06.8]} 20. Bxe8 {[%clk 0:01:06]} 20... Qxe8
{[%clk 0:00:06.7]} 21. h3 {[%clk 0:01:03.4]} 21... Nh6 {[%clk 0:00:05.1]} 22.
Nxe5 {[%clk 0:01:01.3]} 22... Bxe5 {[%clk 0:00:03.2]} 23. Bxh6 {[%clk
0:01:00.5]} 23... Be6 {[%clk 0:00:02.4]} 24. Rxe5 {[%clk 0:00:54.7]} 24... Bxb3
{[%clk 0:00:01.1]} 25. Rxe8 {[%clk 0:00:55.6]} 25... Rxe8 {[%clk 0:00:01]} 26.
axb3 {[%clk 0:00:56]} 1-0

[Event "*** Titled Tuesday Blitz"]
[Site "Chess.com"]
[Date "2020.10.20"]
[Round "7"]
[White "fabianvivasz"]
[Black "kai_nov"]
[Result "0-1"]
[WhiteElo "2435"]
[BlackElo "2288"]
[TimeControl "180+1"]
[EndTime "11:18:54 PDT"]
[Termination "kai_nov won on time"]

1. e4 {[%clk 0:02:59.1]} 1... c5 {[%clk 0:02:57.3]} 2. Nc3 {[%clk 0:02:57]} 2...
e6 {[%clk 0:02:56.5]} 3. Nf3 {[%clk 0:02:56.1]} 3... d5 {[%clk 0:02:55]} 4. exd5
{[%clk 0:02:52.5]} 4... exd5 {[%clk 0:02:54.7]} 5. Bb5+ {[%clk 0:02:53]} 5...
Nc6 {[%clk 0:02:51.6]} 6. d4 {[%clk 0:02:52.4]} 6... Nf6 {[%clk 0:02:46.6]} 7.
O-O {[%clk 0:02:52.1]} 7... Be7 {[%clk 0:02:39.3]} 8. dxc5 {[%clk 0:02:50.1]}
8... Bxc5 {[%clk 0:02:34.2]} 9. Re1+ {[%clk 0:02:49.7]} 9... Be6 {[%clk
0:02:31.6]} 10. Nd4 {[%clk 0:02:32.7]} 10... O-O {[%clk 0:02:28.3]} 11. Be3
{[%clk 0:02:15.6]} 11... Qd6 {[%clk 0:02:25.2]} 12. h3 {[%clk 0:01:37.4]} 12...
h6 {[%clk 0:02:08]} 13. a3 {[%clk 0:01:14]} 13... Rfe8 {[%clk 0:01:58.5]} 14.
Qd3 {[%clk 0:01:06.3]} 14... Re7 {[%clk 0:01:34]} 15. Rad1 {[%clk 0:00:53.5]}
15... Rd8 {[%clk 0:01:28.3]} 16. Nf5 {[%clk 0:00:39.1]} 16... Bxf5 {[%clk
0:01:28]} 17. Bxc5 {[%clk 0:00:36.5]} 17... Rxe1+ {[%clk 0:01:11]} 18. Rxe1
{[%clk 0:00:34.5]} 18... Bxd3 {[%clk 0:00:52.5]} 19. Bxd6 {[%clk 0:00:34.1]}
19... Bxb5 {[%clk 0:00:51.7]} 20. Nxb5 {[%clk 0:00:28.5]} 20... a6 {[%clk
0:00:51.9]} 21. Bc7 {[%clk 0:00:14]} 21... Rd7 {[%clk 0:00:47.1]} 0-1

[Event "*** Titled Tuesday Blitz"]
[Site "Chess.com"]
[Date "2020.10.20"]
[Round "7"]
[White "GigaQuparadze"]
[Black "bascheyaro"]
[Result "1-0"]
[WhiteElo "2880"]
[BlackElo "2737"]
[TimeControl "180+1"]
[EndTime "11:18:58 PDT"]
[Termination "GigaQuparadze won by resignation"]

1. e4 {[%clk 0:03:00.9]} 1... e6 {[%clk 0:03:00.1]} 2. d4 {[%clk 0:03:00]} 2...
d5 {[%clk 0:03:00.5]} 3. Nd2 {[%clk 0:03:00.6]} 3... c5 {[%clk 0:03:00.4]} 4.
Ngf3 {[%clk 0:03:00.1]} 4... Nc6 {[%clk 0:03:00.6]} 5. exd5 {[%clk 0:02:57.1]}
5... exd5 {[%clk 0:03:00.6]} 6. Bb5 {[%clk 0:02:56.5]} 6... c4 {[%clk
0:03:01.1]} 7. b3 {[%clk 0:02:53]} 7... cxb3 {[%clk 0:03:00.9]} 8. axb3 {[%clk
0:02:53.5]} 8... Bd6 {[%clk 0:03:01.5]} 9. O-O {[%clk 0:02:53.1]} 9... Ne7
{[%clk 0:03:01.4]} 10. c4 {[%clk 0:02:53.3]} 10... O-O {[%clk 0:03:01.6]} 11. c5
{[%clk 0:02:53.6]} 11... Bc7 {[%clk 0:03:01.9]} 12. Re1 {[%clk 0:02:48.8]} 12...
a6 {[%clk 0:03:02]} 13. Bd3 {[%clk 0:02:48.3]} 13... Bf5 {[%clk 0:03:01.9]} 14.
Nf1 {[%clk 0:02:46.3]} 14... Qd7 {[%clk 0:02:59.1]} 15. Ng3 {[%clk 0:02:43.4]}
15... Bg6 {[%clk 0:02:58]} 16. Bg5 {[%clk 0:02:38.9]} 16... Rae8 {[%clk
0:02:56.5]} 17. Bxe7 {[%clk 0:02:37.9]} 17... Rxe7 {[%clk 0:02:55.2]} 18. Rxe7
{[%clk 0:02:37.5]} 18... Qxe7 {[%clk 0:02:54.1]} 19. Bxg6 {[%clk 0:02:33]} 19...
hxg6 {[%clk 0:02:52.5]} 20. Nf1 {[%clk 0:02:32.6]} 20... Bf4 {[%clk 0:02:48.5]}
21. g3 {[%clk 0:02:29.2]} 21... Bh6 {[%clk 0:02:48.6]} 22. Kg2 {[%clk
0:02:24.9]} 22... Re8 {[%clk 0:02:48.4]} 23. h4 {[%clk 0:02:20.2]} 23... g5
{[%clk 0:02:32.3]} 24. hxg5 {[%clk 0:02:15.5]} 24... Bxg5 {[%clk 0:02:33.2]} 25.
Qd3 {[%clk 0:02:13.4]} 25... Bf6 {[%clk 0:02:29.2]} 26. Re1 {[%clk 0:02:10.5]}
26... Qd7 {[%clk 0:02:29.4]} 27. Rxe8+ {[%clk 0:02:07.1]} 27... Qxe8 {[%clk
0:02:30.3]} 28. N1d2 {[%clk 0:02:03.2]} 28... g6 {[%clk 0:02:26.9]} 29. Qe3
{[%clk 0:01:56]} 29... Qe6 {[%clk 0:02:25.1]} 30. Nb1 {[%clk 0:01:50.6]} 30...
Qg4 {[%clk 0:02:16.5]} 31. Nc3 {[%clk 0:01:47.4]} 31... Nxd4 {[%clk 0:02:09.6]}
32. Nxd5 {[%clk 0:01:45.4]} 32... Qxf3+ {[%clk 0:00:29.8]} 33. Qxf3 {[%clk
0:01:43.3]} 33... Nxf3 {[%clk 0:00:30.7]} 34. Nxf6+ {[%clk 0:01:43.1]} 34... Kg7
{[%clk 0:00:31.3]} 35. Nh5+ {[%clk 0:01:30.6]} 35... gxh5 {[%clk 0:00:19.8]} 36.
Kxf3 {[%clk 0:01:30.5]} 36... f5 {[%clk 0:00:20.7]} 37. Ke3 {[%clk 0:01:24.9]}
37... Kf6 {[%clk 0:00:19]} 38. f4 {[%clk 0:01:24.3]} 38... Ke6 {[%clk
0:00:18.2]} 39. Kd4 {[%clk 0:01:24.5]} 39... Kd7 {[%clk 0:00:16.3]} 40. Ke5
{[%clk 0:01:15.7]} 40... Kc6 {[%clk 0:00:16.7]} 41. Kxf5 {[%clk 0:01:15.9]}
41... Kxc5 {[%clk 0:00:17.2]} 42. Ke6 {[%clk 0:01:16.1]} 1-0